bitfinex/quotes_ETHUSD_20250725
["timestamp","ask_amount","ask_price","bid_price","bid_amount"]
[1753417643503,0.04,3586.9,3586.8,4.487]
[1753417643836,0.9665,3586.9,3586.0,8.0146]
[1753417644049,0.1392,3586.5,3586.0,7.3922]
[1753417644205,0.9265,3586.4,3585.3,0.7697]
[1753417644399,0.1392,3585.8,3585.4,4.487]
[1753417644597,0.1392,3585.8,3585.3,0.9089]
[1753417644934,1.7303,3585.7,3585.0,2.78939032]
[1753417645089,2.92813426,3585.6,3585.1,0.1392]
[1753417645293,0.1392,3585.6,3585.2,4.487]
[1753417645507,3.41014538,3585.6,3585.2,4.487]
[1753417645797,0.6212,3585.6,3585.2,4.487]
[1753417646016,0.1392,3585.6,3585.2,4.487]
[1753417646324,0.1392,3586.2,3585.8,2.78873727]
[1753417646533,0.1392,3586.2,3585.9,4.487]
[1753417646715,0.1392,3586.4,3585.9,5.4099]
[1753417647028,0.1392,3586.6,3586.1,2.9276919]
[1753417647193,0.9265,3586.5,3585.7,0.7848]
[1753417647395,9.99963962,3586.2,3585.4,0.7848]
[1753417647591,2.78877941,3585.8,3585.5,4.487]
[1753417647796,2.19853063,3586.1,3585.6,4.487]
[1753417647797,0.1392,3585.7,3585.6,4.487]
[1753417648900,0.1392,3586.3,3585.6,8.33796515]
[1753417649211,0.8293,3586.5,3585.6,4.6262]
[1753417649442,0.1392,3586.1,3585.7,7.27585347]
[1753417649766,0.1392,3586.1,3585.8,4.487]
[1753417650061,0.1392,3586.1,3585.7,2.78885347]
[1753417650218,0.1392,3586.1,3585.8,7.27576536]
[1753417650550,0.1392,3586.1,3586.0,2.78862242]
[1753417650758,0.1392,3586.5,3586.2,2.78844115]
[1753417650903,4.07289534,3586.9,3586.3,4.486]
[1753417651100,0.1392,3586.6,3586.3,4.486]
[1753417651351,0.1392,3586.6,3586.3,7.27436242]
[1753417651519,0.1392,3586.6,3586.3,4.486]
[1753417651720,0.04,3586.9,3586.4,3.85039991]
[1753417651721,0.1792,3586.9,3586.4,3.85039991]
[1753417652132,0.1792,3586.9,3586.5,2.78823365]
[1753417652543,0.6237,3586.9,3586.4,0.1392]
[1753417652742,0.1792,3586.9,3586.4,2.927498]
[1753417652942,0.1792,3586.9,3586.5,7.27423288]
[1753417653249,0.1792,3586.9,3586.6,2.78809736]
[1753417653544,0.1792,3586.9,3586.5,4.486]
[1753417653545,0.1792,3586.9,3586.7,2.78807419]
[1753417654225,0.1792,3586.9,3586.5,5.4089]
[1753417654425,0.1792,3586.9,3586.5,8.19711085]
[1753417654845,0.04,3586.9,3586.8,2.78800044]
[1753417655148,0.04,3586.9,3586.8,7.27400044]
[1753417655509,0.04,3586.9,3586.8,8.19690044]
[1753417656249,0.04,3586.9,3586.8,3.71090044]
[1753417656419,0.04,3586.9,3586.8,7.27300044]
[1753417656615,0.04,3586.9,3586.7,0.1392]
[1753417656814,0.04,3586.9,3586.8,4.485]
[1753417657043,0.04,3586.9,3586.2,1.7077]
[1753417657044,0.522,3586.9,3586.5,0.1392]
[1753417657246,3.30996278,3586.9,3586.6,4.485]
[1753417657447,4.01347624,3586.9,3586.6,4.485]
[1753417657650,4.01343653,3586.9,3586.6,4.485]
[1753417657814,1.22551346,3586.9,3586.7,4.485]
[1753417658016,0.522,3586.9,3586.7,4.485]
[1753417658245,0.04,3586.9,3586.7,7.27306102]
[1753417658624,0.002,3587.2,3587.1,3.33776727]
[1753417658859,0.002,3587.2,3587.1,12.66966727]
[1753417659057,0.002,3587.2,3587.1,12.11966727]
[1753417659653,0.002,3587.2,3587.1,7.63466727]
[1753417659831,0.002,3587.2,3587.1,5.409]
[1753417660161,0.002,3587.2,3587.1,4.6242]
[1753417660368,0.002,3587.2,3586.9,3.0]
[1753417660571,0.002,3587.2,3587.0,4.485]
[1753417662960,2.78969293,3587.2,3587.0,4.485]
[1753417663264,2.78784499,3587.0,3586.9,0.1392]
[1753417663436,2.78784499,3587.0,3586.9,4.484]
[1753417663776,3.26984499,3587.0,3586.6,0.1392]
[1753417664057,2.78784499,3587.0,3586.7,4.484]
[1753417664359,2.78800044,3586.8,3586.7,4.484]
[1753417664541,2.78807817,3586.7,3586.6,0.1392]
[1753417664756,0.482,3586.9,3586.6,4.484]
[1753417664951,0.9557,3587.1,3586.6,4.484]
[1753417665169,2.78785265,3587.0,3586.6,4.484]
[1753417665453,3.74348676,3587.1,3586.7,4.484]
[1753417665654,2.78786043,3587.0,3586.7,4.484]
[1753417665880,3.74347112,3587.1,3586.7,4.484]
[1753417666028,2.78798286,3586.9,3586.7,4.484]
[1753417666228,2.78800044,3586.8,3586.7,4.484]
[1753417666436,2.78815591,3586.6,3586.5,0.1392]
[1753417666646,2.78852244,3586.2,3586.0,0.1392]
[1753417666845,2.78852244,3586.2,3586.1,4.484]
[1753417667166,3.27832244,3586.2,3586.1,4.484]
[1753417667379,3.27832244,3586.2,3586.0,0.1392]
[1753417667380,2.78854465,3586.1,3586.0,0.1392]
[1753417667560,2.78877795,3585.8,3585.7,0.1392]
[1753417667763,2.78862242,3586.0,3585.7,0.1392]
[1753417667764,2.78871869,3585.9,3585.7,4.6232]
[1753417668074,3.27851869,3585.9,3585.7,4.6232]
[1753417668232,0.4898,3585.9,3585.7,4.6232]
[1753417668436,2.78863861,3586.0,3585.7,4.6232]
[1753417668758,0.1392,3586.2,3585.7,4.6232]
[1753417669162,2.92770951,3586.2,3585.7,4.6232]
[1753417669557,2.78855535,3586.1,3585.7,4.6232]
[1753417669875,0.1392,3586.2,3585.7,4.6232]
[1753417670053,0.1392,3586.2,3585.7,5.54238855]
[1753417670258,2.78820917,3586.6,3585.8,4.43345033]
[1753417670440,0.7834,3586.9,3586.1,0.1392]
[1753417670647,0.002,3587.2,3586.7,0.1392]
[1753417670940,2.78792271,3586.9,3586.7,0.1392]
[1753417671250,0.4898,3587.1,3586.8,4.484]
[1753417671577,2.78854585,3586.1,3585.8,0.7534]
[1753417671877,0.002,3587.2,3586.0,0.7848]
[1753417672172,2.78784499,3587.0,3586.0,0.7848]
[1753417672342,2.78847811,3586.2,3586.1,4.484]
[1753417672874,0.4898,3586.5,3586.1,4.484]
[1753417673035,2.7884669,3586.2,3586.1,4.484]
[1753417673772,2.78864731,3586.0,3585.6,7.251]
[1753417673938,0.9423,3586.2,3585.7,4.484]
[1753417673939,2.78859739,3586.1,3585.7,4.484]
[1753417674339,0.7652,3587.0,3585.8,0.8913]
[1753417674650,2.78805047,3586.8,3586.0,3.57339558]
[1753417674852,2.78805047,3586.8,3586.2,3.0]
[1753417675649,0.7652,3587.0,3586.0,0.7848]
[1753417675848,1.255,3587.0,3586.2,3.0]
[1753417676080,2.78974956,3587.2,3586.3,2.78838914]
[1753417676248,0.002,3587.2,3586.4,1.216]
[1753417676453,0.002,3587.2,3586.7,2.78804719]
[1753417676842,0.002,3587.2,3586.8,0.4601]
[1753417677042,0.002,3587.2,3586.9,7.27191696]
[1753417677362,0.002,3587.2,3586.9,5.3753]
[1753417678278,0.002,3587.2,3586.4,1.2449]
[1753417678456,0.002,3587.2,3586.6,5.78814333]
[1753417678651,0.002,3587.2,3586.7,4.484]
[1753417679173,2.78970708,3587.2,3586.7,4.484]
[1753417679743,0.002,3587.2,3586.7,7.27205866]
[1753417680183,0.002,3587.2,3586.8,5.40218]
[1753417680479,3.27950851,3587.2,3586.9,4.483]
[1753417680656,0.002,3587.2,3586.4,3.7848]
[1753417680853,0.4898,3587.1,3586.5,4.483]
[1753417681054,2.78970124,3587.2,3586.6,7.483]
[1753417681240,2.78778683,3587.1,3586.6,7.483]
[1753417681442,0.002,3587.2,3587.1,2.78776727]
[1753417681680,0.002,3587.2,3587.1,11.60556727]
[1753417681852,0.002,3587.2,3587.1,12.49686727]
[1753417682054,0.002,3587.7,3587.6,4.12217874]
[1753417682376,1.00630262,3588.8,3587.9,6.57194568]
[1753417682575,0.4918,3589.4,3587.9,11.74414568]
[1753417682745,0.4918,3589.4,3587.9,12.63544568]
[1753417683279,2.78610987,3589.3,3587.9,12.63544568]
[1753417683442,2.78618897,3589.2,3587.9,12.63544568]
[1753417683645,2.78630503,3589.0,3587.9,12.08544568]
[1753417683889,2.78622974,3589.1,3587.9,12.08544568]
[1753417684075,0.4898,3589.0,3587.9,4.8153]
[1753417684254,3.27611623,3589.0,3587.9,12.08544568]
[1753417684448,0.002,3589.4,3587.9,12.63544568]
[1753417684644,0.002,3589.4,3588.8,6.57124672]
[1753417684845,0.002,3589.4,3589.3,2.78605856]
[1753417685048,0.04,3589.9,3589.8,2.78567051]
[1753417685246,0.04,3589.9,3589.8,10.84652721]
[1753417685469,0.002,3590.8,3590.7,2.78497228]
[1753417685669,0.002,3590.8,3590.7,11.188522]
[1753417685984,0.002,3590.8,3590.7,12.05197228]
[1753417686344,0.002,3590.8,3590.7,12.60197228]
[1753417686544,0.002,3590.8,3590.7,8.11897228]
[1753417686744,0.002,3590.8,3590.7,12.60097228]
[1753417686987,0.002,3591.3,3591.0,4.11953962]
[1753417686988,1e-08,3591.1,3591.0,4.11953962]
[1753417687187,1e-08,3591.1,3591.0,18.87838701]
[1753417687350,1e-08,3591.1,3591.0,19.88103962]
[1753417688070,1e-08,3591.1,3591.0,12.6143]
[1753417688251,1e-08,3591.1,3591.0,19.33103962]
[1753417688453,1e-08,3591.1,3591.0,16.5463]
[1753417689262,1e-08,3591.1,3591.0,19.32903962]
[1753417689585,1e-08,3591.1,3591.0,19.87903962]
[1753417690095,1e-08,3591.1,3591.0,3.924]
[1753417690291,1e-08,3591.1,3591.0,8.404]
[1753417691055,1e-08,3591.1,3591.0,3.924]
[1753417691391,1e-08,3591.1,3591.0,8.404]
[1753417691587,1e-08,3591.1,3591.0,3.1392]
[1753417691768,2.78466209,3591.1,3591.0,3.1392]
[1753417691965,3.27446209,3591.1,3591.0,4.6192]
[1753417692185,3.27446209,3591.1,3591.0,0.1392]
[1753417692392,2.78475346,3591.0,3590.9,0.1392]
[1753417692562,3.27455346,3591.0,3590.9,4.6182]
[1753417692895,1e-08,3591.1,3590.9,4.6182]
[1753417693095,1e-08,3591.1,3591.0,0.02784739]
[1753417693394,1e-08,3591.1,3591.0,7.05748701]
[1753417693699,1e-08,3591.1,3591.0,11.04853962]
[1753417693997,1e-08,3591.1,3591.0,12.48983962]
[1753417694555,0.002,3591.6,3591.5,4.11915194]
[1753417694866,0.002,3591.6,3591.5,11.73635194]
[1753417695074,0.002,3591.6,3591.5,12.62765194]
[1753417695251,0.002,3591.6,3591.5,8.14965194]
[1753417695451,0.002,3591.6,3591.5,12.62765194]
[1753417696194,0.002,3591.6,3591.5,8.14965194]
[1753417696413,0.002,3591.6,3591.5,12.62765194]
[1753417697194,0.4309,3594.2,3591.6,3.0]
[1753417697369,0.7969,3595.8,3593.8,3.56736998]
[1753417697569,0.4912,3595.3,3593.8,18.93419567]
[1753417697770,0.4912,3595.3,3593.8,17.0471]
[1753417697982,0.4912,3595.3,3594.6,5.7819507]
[1753417698188,1.2881,3595.8,3594.6,11.6361507]
[1753417698496,1e-08,3594.7,3594.6,6.5341507]
[1753417698903,1e-08,3594.7,3594.6,5.7819507]
[1753417699407,0.49120001,3594.7,3594.6,7.553]
[1753417699689,0.49120001,3594.7,3594.6,3.0]
[1753417699863,0.92210001,3594.7,3594.6,4.552]
[1753417700289,3.70404127,3594.7,3594.0,3.0]
[1753417700464,0.4912,3594.6,3594.2,3.0]
[1753417700664,0.4912,3594.5,3594.3,4.55]
[1753417701262,0.4912,3594.4,3594.2,3.0]
[1753417701471,0.4912,3594.3,3594.2,3.0]
[1753417701800,1e-08,3594.7,3594.3,3.0]
[1753417701964,1e-08,3594.7,3594.6,2.7819507]
[1753417702165,1e-08,3594.7,3594.6,10.3319507]
[1753417702394,1e-08,3594.7,3594.6,11.2552507]
[1753417702898,1e-08,3594.7,3594.6,3.0]
[1753417703197,0.92210001,3594.7,3593.7,3.7745]
[1753417703383,2.78232904,3594.2,3593.2,0.7848]
[1753417703583,0.7694329,3594.1,3593.3,7.33395717]
[1753417703909,3.27361967,3594.0,3593.4,4.551]
[1753417704279,3.27362743,3594.0,3593.5,3.0]
[1753417704480,0.4912,3594.0,3593.5,3.0]
[1753417704787,0.4912,3594.3,3593.6,7.32972211]
[1753417705121,2.78232486,3594.2,3593.4,2.78282324]
[1753417705277,2.78232486,3594.2,3593.5,7.546]
[1753417705482,2.78202171,3594.6,3593.5,10.32878761]
[1753417705683,2.78204051,3594.5,3593.8,2.78249382]
[1753417705883,3.2732076,3594.6,3593.9,4.544]
[1753417706108,0.4912,3594.6,3594.0,5.81023206]
[1753417706412,0.4912,3594.6,3594.0,5.78240791]
[1753417706619,1e-08,3594.7,3594.4,2.7820605]
[1753417706917,1e-08,3594.7,3594.5,4.56982028]
[1753417707307,1e-08,3594.7,3594.6,0.1392]
[1753417707485,1e-08,3594.7,3594.6,2.9211507]
[1753417707685,0.49120001,3594.7,3594.6,4.6802]
[1753417708306,0.92210001,3594.7,3594.6,4.6782]
[1753417708504,1e-08,3594.7,3594.6,4.6782]
[1753417709214,1e-08,3594.7,3594.6,4.539]
[1753417709606,1e-08,3594.7,3594.6,5.8097702]
[1753417709920,1e-08,3594.7,3594.6,10.3209507]
[1753417710293,1e-08,3594.7,3594.6,7.539]
[1753417710495,1e-08,3594.7,3594.6,7.538]
[1753417710711,1e-08,3594.7,3594.6,10.3199507]
[1753417711117,1e-08,3594.7,3594.6,5.7819507]
[1753417711318,1e-08,3594.7,3594.6,7.536]
[1753417711524,1e-08,3594.7,3594.6,10.3149507]
[1753417711696,1e-08,3594.7,3594.6,7.533]
[1753417712092,1e-08,3594.7,3594.6,10.3149507]
[1753417712297,1e-08,3594.7,3594.6,7.533]
[1753417713811,1e-08,3594.7,3594.6,3.0]
[1753417714123,0.49120001,3594.7,3594.6,7.525]
[1753417714527,1e-08,3594.7,3594.6,7.525]
[1753417714916,1e-08,3594.7,3594.6,10.7670507]
[1753417715104,1e-08,3594.7,3594.6,3.0]
[1753417715305,1e-08,3594.7,3594.6,10.3327702]
[1753417715518,1e-08,3594.7,3594.6,11.2282507]
[1753417715720,1e-08,3594.7,3594.6,11.9898507]
[1753417716031,1e-08,3594.7,3594.6,11.9878507]
[1753417716204,1e-08,3594.7,3594.6,12.5378507]
[1753417717290,1e-08,3594.7,3594.6,7.4668507]
[1753417717491,1e-08,3594.7,3594.6,6.5435507]
[1753417717706,1e-08,3594.7,3594.6,3.0]
[1753417717912,1e-08,3594.7,3593.7,0.7629]
[1753417718105,0.4309,3594.6,3593.7,7.235]
[1753417718309,2.95360751,3594.5,3593.8,4.524]
[1753417718637,1e-08,3594.7,3593.8,3.0]
[1753417718958,0.4912,3594.6,3593.9,4.524]
[1753417719098,2.7820899,3594.5,3594.4,0.1392]
[1753417719298,1e-08,3594.7,3594.4,4.6632]
[1753417719510,0.4912,3594.6,3594.5,4.522]
[1753417719730,1e-08,3594.7,3594.5,4.522]
[1753417719731,1e-08,3594.7,3594.6,0.1392]
[1753417719934,1e-08,3594.7,3594.6,0.4879195]
[1753417720150,1e-08,3594.7,3594.6,3.9511195]
[1753417720737,1e-08,3594.7,3594.6,3.9233]
[1753417721106,1e-08,3594.7,3594.6,7.2552507]
[1753417721913,1e-08,3594.7,3594.6,10.8499507]
[1753417722117,1e-08,3594.7,3594.6,11.7732507]
[1753417722455,1e-08,3594.7,3594.6,12.5449507]
[1753417722797,0.002,3595.5,3595.4,6.3313317]
[1753417723035,0.002,3595.5,3595.4,18.9984317]
[1753417723235,0.002,3595.5,3595.4,19.9217317]
[1753417723741,0.002,3595.5,3595.4,15.4057317]
[1753417723915,0.002,3595.5,3595.4,19.9217317]
[1753417724110,0.002,3595.5,3595.4,12.6244]
[1753417724313,0.002,3595.5,3595.4,16.6762]
[1753417724523,0.002,3595.5,3595.4,19.4575317]
[1753417724945,0.002,3595.5,3595.4,16.2161]
[1753417725100,0.002,3595.5,3595.4,11.1511]
[1753417725443,0.002,3595.5,3595.4,3.1392]
[1753417725598,0.4932,3595.5,3595.4,4.6512]
[1753417726004,0.002,3595.5,3595.4,4.6512]
[1753417726199,0.7818,3595.5,3595.4,1e-08]
[1753417726414,0.7798,3595.1,3593.6,0.1392]
[1753417726615,0.7798,3594.4,3593.8,3.02882569]
[1753417726816,7.25332306,3595.5,3593.8,3.02882569]
[1753417726817,0.7798,3594.8,3593.9,5.0051]
[1753417727021,2.78140906,3595.3,3594.4,3.7848]
[1753417727261,0.4753,3595.4,3595.2,0.1392]
[1753417727442,0.002,3595.5,3595.2,0.1392]
[1753417727771,0.002,3595.5,3595.4,3.1392]
[1753417728060,0.002,3595.5,3595.4,6.73314501]
[1753417728222,0.002,3595.5,3595.4,7.1654317]
[1753417728422,0.002,3595.5,3595.4,8.1765317]
[1753417729121,1e-08,3595.5,3595.4,8.1765317]
[1753417729949,1e-08,3595.5,3595.4,12.7265317]
[1753417730351,1e-08,3595.5,3595.4,12.7245317]
[1753417732668,0.002,3596.2,3596.1,7.1039903]
[1753417732865,1e-08,3596.2,3596.1,18.8789903]
[1753417733023,1e-08,3596.2,3596.1,19.9393903]
[1753417733624,1e-08,3596.2,3596.1,19.8001903]
[1753417734046,1e-08,3596.9,3596.8,3.33024911]
[1753417734248,1e-08,3596.9,3596.8,11.6660516]
[1753417734582,1e-08,3596.9,3596.8,12.09834911]
[1753417734868,1e-08,3596.9,3596.8,12.55944911]
[1753417736362,1e-08,3596.9,3596.8,20.76040011]
[1753417736778,1e-08,3596.9,3596.8,15.22905011]
[1753417736947,1e-08,3596.9,3596.8,10.69105011]
[1753417737156,1e-08,3596.9,3596.8,15.22605011]
[1753417737733,1e-08,3596.9,3596.8,15.22405011]
[1753417738266,0.04,3598.9,3598.8,2.77870401]
[1753417738428,0.4753,3598.8,3598.7,10.23]
[1753417738628,0.9501,3598.8,3598.7,7.534]
[1753417739162,0.9501,3598.8,3598.7,7.533]
[1753417739550,0.04,3598.9,3598.7,7.533]
[1753417740056,0.5148,3598.9,3598.8,3.0]
[1753417740231,0.5148,3598.9,3598.3,2.77901529]
[1753417740232,2.77886548,3598.6,3598.3,7.229]
[1753417740436,0.9501,3598.5,3598.4,3.0]
[1753417740763,0.9501,3598.5,3598.4,7.528]
[1753417740967,0.4753,3598.5,3598.4,3.0]
[1753417741134,0.9501,3598.5,3598.4,7.528]
[1753417741331,0.9501,3598.5,3597.9,7.229]
[1753417741541,0.9501,3598.4,3598.0,4.527]
[1753417741736,0.9501,3598.3,3598.1,7.526]
[1753417741944,0.8051,3598.7,3598.1,7.526]
[1753417742257,0.8051,3598.7,3598.6,5.77885844]
[1753417742457,0.4753,3598.8,3598.7,5.77878122]
[1753417742672,0.04,3598.9,3598.7,5.77878122]
[1753417742673,0.04,3598.9,3598.8,2.77870401]
[1753417742843,0.04,3598.9,3598.8,7.30970401]
[1753417743040,0.04,3598.9,3598.8,4.531]
[1753417743370,0.9901,3598.9,3598.8,4.529]
[1753417743670,0.9901,3598.9,3598.8,4.6682]
[1753417744470,0.04,3598.9,3598.8,7.44690401]
[1753417744768,0.04,3598.9,3598.8,10.44690401]
[1753417745171,0.5153,3598.9,3598.8,7.6682]
[1753417745376,0.9901,3598.9,3598.8,0.1392]
[1753417745583,1.7997,3598.9,3597.6,7.228]
[1753417745742,0.9501,3598.8,3598.4,0.1392]
[1753417745942,0.9501,3598.8,3598.5,4.55978935]
[1753417746250,0.4748,3598.8,3598.7,2.91798122]
[1753417746442,0.8496,3598.9,3598.8,2.77870401]
[1753417746772,0.04,3598.9,3598.8,7.30970401]
[1753417747254,0.5153,3598.9,3598.8,7.30970401]
[1753417748002,0.5153,3598.9,3598.8,2.77870401]
[1753417748160,0.9901,3598.9,3598.8,4.53]
[1753417748501,0.04,3598.9,3598.8,10.30870401]
[1753417748965,0.5153,3598.9,3598.8,10.30870401]
[1753417749173,1.3459,3598.9,3598.8,3.0]
[1753417749358,1.3459,3598.9,3598.7,2.9179791]
[1753417749359,1.8207,3598.9,3598.7,0.1392]
[1753417749563,0.8706,3598.9,3598.8,7.31170401]
[1753417750057,0.04,3598.9,3598.8,2.77870401]
[1753417750270,0.04,3598.9,3598.8,7.31270401]
[1753417750469,0.04,3598.9,3598.8,10.31270401]
[1753417750672,0.04,3598.9,3598.8,10.31070401]
[1753417750982,0.9901,3598.9,3598.8,10.31170401]
[1753417751581,0.9901,3598.9,3598.7,0.1392]
[1753417751582,0.8108,3598.8,3598.7,0.1392]
[1753417751768,1.7609,3598.8,3598.7,4.6702]
[1753417751971,1.7609,3598.8,3598.7,0.1392]
[1753417752279,1.7609,3598.8,3598.7,7.44898122]
[1753417752480,1.7609,3598.8,3598.7,4.6702]
[1753417752695,1.7609,3598.8,3598.7,4.6692]
[1753417753183,1.7609,3598.8,3598.7,2.91798122]
[1753417753383,0.04,3598.9,3598.7,2.91798122]
[1753417753384,0.04,3598.9,3598.8,2.77870401]
[1753417753679,0.04,3598.9,3598.7,7.44798122]
[1753417753680,0.4748,3598.8,3598.7,0.1392]
[1753417754108,1.2588,3598.8,3598.7,4.527]
[1753417754265,1.7341,3598.8,3598.7,4.527]
[1753417754763,1.7341,3598.8,3598.5,0.1392]
[1753417755071,2.77927753,3598.1,3597.5,7.226]
[1753417755278,3.58807615,3598.2,3597.9,0.1392]
[1753417755464,0.9501,3598.1,3598.0,4.527]
[1753417756094,0.9501,3598.1,3598.0,4.526]
[1753417757861,0.9501,3598.1,3598.0,4.522]
[1753417758060,3.72939637,3598.1,3598.0,4.522]
[1753417758263,0.9501,3598.1,3598.0,4.522]
[1753417758462,3.7293446,3598.1,3598.0,4.522]
[1753417758662,2.77932184,3598.0,3597.9,0.001]
[1753417758900,4.51822184,3598.0,3597.9,4.523]
[1753417759195,4.51822184,3598.0,3597.9,0.001]
[1753417759397,3.56396078,3597.6,3597.5,4.52]
[1753417759601,2.77972752,3597.5,3597.1,0.1392]
[1753417759764,0.9546,3597.5,3597.2,4.52]
[1753417759961,0.9546,3597.4,3597.2,4.52]
[1753417760156,0.9546,3597.3,3597.2,4.52]
[1753417760616,0.9546,3597.3,3597.1,0.1392]
[1753417760815,0.8129,3597.0,3596.4,7.227]
[1753417760965,0.9546,3596.9,3596.5,4.516]
[1753417761159,0.9546,3596.8,3596.7,0.1392]
[1753417761758,0.4998,3597.1,3596.8,2.78024911]
[1753417761990,0.4998,3597.1,3597.0,0.1392]
[1753417762494,0.9546,3597.1,3597.0,0.1392]
[1753417762679,0.9546,3597.1,3596.4,10.76710134]
[1753417762680,0.9546,3597.1,3596.4,7.227]
[1753417762881,2.91938818,3596.9,3596.4,7.3662]
[1753417763084,2.91938818,3596.9,3596.5,4.514]
[1753417763390,0.9546,3596.8,3596.5,4.514]
[1753417763798,0.1392,3596.9,3596.4,7.3662]
[1753417763799,3.58858102,3596.5,3596.4,7.227]
[1753417764002,1.7627,3596.5,3596.4,11.738]
[1753417765290,1.2998,3596.9,3596.5,2.78047983]
[1753417765601,0.9546,3596.8,3596.4,7.227]
[1753417765801,2.78045808,3596.6,3596.4,7.227]
[1753417766106,0.9546,3596.5,3596.4,7.227]
[1753417766302,0.9546,3596.5,3596.4,11.749]
[1753417766601,0.9546,3596.5,3596.4,7.227]
[1753417766802,0.9546,3596.5,3596.4,11.748]
[1753417766972,0.9546,3596.5,3596.4,11.746]
[1753417767168,0.9546,3596.5,3596.4,7.227]
[1753417767381,0.9546,3596.5,3596.4,11.745]
[1753417767786,4.99185196,3596.5,3596.4,7.227]
[1753417768104,12.34420408,3596.5,3596.4,11.245]
[1753417768485,12.34420408,3596.5,3596.4,11.246]
[1753417768687,11.79420408,3596.5,3596.4,11.246]
[1753417768907,13.80166425,3596.5,3596.4,11.246]
[1753417769270,13.80166425,3596.5,3596.4,6.727]
[1753417769502,13.80166425,3596.5,3596.4,11.246]
[1753417770475,3.21986017,3596.5,3596.4,11.246]
[1753417770806,0.8285,3597.0,3596.9,2.78016031]
[1753417771010,0.9546,3597.3,3597.0,2.78006829]
[1753417771317,0.7824,3597.4,3597.3,2.77986267]
[1753417771480,0.7824,3597.8,3597.6,2.77961099]
[1753417771677,0.7824,3597.8,3597.7,4.518]
[1753417771888,1.737,3597.8,3596.5,0.9001]
[1753417772213,2.77968795,3597.6,3596.8,2.78023853]
[1753417772408,0.72961876,3597.5,3596.9,4.518]
[1753417772617,2.7799163,3597.3,3597.0,4.517]
[1753417772798,0.9546,3597.2,3596.4,6.727]
[1753417772981,7.25132306,3597.6,3596.4,6.727]
[1753417772982,3.60798102,3596.5,3596.4,6.727]
[1753417773213,1.7821,3596.5,3596.4,11.245]
[1753417775292,0.8275,3596.5,3596.4,11.245]
[1753417776013,1.60538231,3597.3,3596.6,2.7803871]
[1753417776332,0.1392,3597.1,3596.7,4.511]
[1753417776617,0.4548,3597.7,3596.9,2.78017181]
[1753417776779,0.1392,3597.8,3597.7,2.7795536]
[1753417776980,1.4365,3598.1,3597.8,2.77945213]
[1753417777180,1.62583,3598.1,3597.9,4.512]
[1753417777523,1.62583,3598.1,3598.0,2.77932184]
[1753417777524,0.7975,3598.1,3598.0,2.77932184]
[1753417777703,0.1392,3598.2,3598.1,2.7792446]
[1753417778021,0.1392,3598.2,3598.1,4.511]
[1753417778202,0.639,3598.2,3598.1,7.2902446]
[1753417778404,0.1392,3598.2,3598.1,7.2902446]
[1753417778594,0.1392,3598.2,3598.1,4.511]
[1753417779032,0.5418,3598.9,3598.2,2.77916736]
[1753417779948,0.042,3598.9,3598.2,6.23136736]
[1753417780100,0.042,3598.9,3598.2,10.74236736]
[1753417780436,0.042,3598.9,3598.2,11.19026736]
[1753417780801,1e-08,3598.3,3598.2,11.19026736]
[1753417782002,1e-08,3598.3,3598.2,3.4522]
[1753417782202,1e-08,3598.3,3598.2,10.74136736]
[1753417782699,1e-08,3598.3,3598.2,3.4522]
[1753417782928,1e-08,3598.3,3598.2,3.0]
[1753417783102,1e-08,3598.3,3598.2,3.4522]
[1753417783311,1e-08,3598.3,3598.2,3.0]
[1753417783544,1e-08,3598.3,3598.2,7.506]
[1753417784234,2.7792584,3598.1,3597.9,0.001]
[1753417784536,0.4548,3598.1,3598.0,4.505]
[1753417784732,2.77932184,3598.0,3597.9,0.001]
[1753417784964,4.33525434,3598.0,3597.9,0.001]
[1753417785308,4.33525434,3598.0,3597.9,3.64463854]
[1753417785458,0.6013325,3598.0,3597.9,3.64463854]
[1753417785876,1e-08,3598.3,3598.0,2.77932184]
[1753417786168,1e-08,3598.3,3598.2,2.77916736]
[1753417786349,1e-08,3598.3,3598.2,4.503]
[1753417786567,1e-08,3598.3,3597.9,3.0]
[1753417786886,1e-08,3598.3,3598.0,14.51029522]
[1753417787070,1e-08,3598.3,3598.1,2.77917251]
[1753417787383,1e-08,3598.3,3598.2,4.502]
[1753417787590,1e-08,3598.3,3595.6,0.7837]
[1753417787591,1.3173,3598.1,3595.6,0.7837]
[1753417787756,0.55,3597.3,3596.2,4.548]
[1753417787939,0.4779,3597.3,3596.6,2.78036307]
[1753417788292,0.4779,3597.3,3596.7,4.547]
[1753417788588,0.4779,3597.3,3596.8,4.547]
[1753417788749,3.8927773,3597.2,3596.9,4.548]
[1753417788943,0.17092,3597.2,3596.9,4.548]
[1753417789155,0.7673,3597.4,3597.0,3.24903863]
[1753417789355,0.7673,3597.4,3597.1,4.6862]
[1753417789544,0.7673,3597.4,3597.2,4.547]
[1753417790063,0.7673,3597.4,3597.3,4.546]
[1753417791630,0.6032,3597.6,3597.3,4.546]
[1753417791867,3.7688947,3597.6,3597.3,4.546]
[1753417792169,0.9419,3597.5,3597.4,4.54]
[1753417792337,0.9419,3597.5,3597.1,0.1392]
[1753417792532,2.7799988,3597.2,3596.5,3.0]
[1753417792780,0.9419,3597.1,3596.7,3.0]
[1753417792937,1.7638,3597.0,3596.6,0.1392]
[1753417793146,0.9419,3596.9,3596.7,4.538]
[1753417793368,0.1392,3597.2,3596.7,4.538]